Workbook

Sheet Menu
A4: MENU
B6: Specifications Section 4-3.2 allows for alteration in the character of the contract work to be paid for by the calculations in Specifications Section 4-3.2.1 and 4-3.2.2 or by an agreed Supplemental Agreement (typically based on statewide averages for the applicable work).
B11: Option 1: | C11: Calculations per Specifications Section 4-3.2
B16: This option should be used when the calculations from Specifications Section 4-3.2.1 and 4-3.2.2 are used to determine the payment to the Contractor. Use the CONTRACTOR and SUB1 through SUB10 tabs for this Option.
B22: Option 2: | C22: Calculations using Statewide Averages
B27: This option should be used when statewide averages are used to determine payment to the Contractor. Use the SWA tabs for this Option.

Sheet Option 1
A5: Option 1
A6: Calculations per Specifications Section 4-3.2
A7: Instructions
A9: NOTE: Only the yellow cells require entry by project personnel. Tabs for Option 2 are optional.
A11: On the CONTRACTOR tab:
A12: Step 1: Enter the Contract and Contractor Information
A13: Step 2: Complete the LABOR AND BURDEN fields
A14: Step 3: Complete the MATERIALS AND SUPPLIES fields
A15: Step 4: Complete the EQUIPMENT fields
A16: Step 5: Enter the Bond amount
A17: Step 6: Enter in the Original Contract Amount
A18: Step 7: Enter the Original Contract Time (number of days)
A19: Step 8: Enter the Calendar of days entitlement minus 10
A21: If there is any work by Subcontractor(s), complete the following on the SUB# tab(s), as appropriate:
A22: Step 9: Enter the Subcontractor Name
A23: Step 10: Complete the LABOR AND BURDEN fields
A24: Step 11: Complete the MATERIALS AND SUPPLIES fields
A25: Step 12: Complete the EQUIPMENT fields
A26: Step 13: Enter the Bond amount
A28: If there is NO work by Subcontractor(s), skip to Step 14:
A30: Step 14: Verify the information from the SUB# tabs transferred to the CONTRACTOR tab correctly.
A32: Optional:
A33: Use the SWA tab to validate the amount calculated on the CONTRACTOR tab is within reason.
A35: Step 15: Apply digital signature to the CONTRACTOR tab
A36: Step 16: Submit electronically as an Excel spreadsheet to the Department
A38: Row Control:
A39: Select the appropriate (+) or (-) button to add or remove rows as needed.

Sheet Contractor
A2: CONTRACTOR INFORMATION
A4: FIN#: | D4: Contract #: | F4: Fed Proj. #:
A5: Point of Contact (Name/Phone #):
A6: Email Address:
A7: Estimate Prepared By:
A8: Company:
A16: ******************************************************************************************************
A18: CONTRACTOR | C18: =IF(C98="","",C98) -> 
A19: 1) | B19: LABOR AND BURDEN | G19: =+G107 -> 0
A20: 2) | B20: MATERIALS AND SUPPLIES | G20: =+G117 -> 0
A21: 3) | B21: EQUIPMENT | G21: =+G128 -> 0
A22: 4) | B22: INDIRECT COST, EXPENSES, AND PROFIT | G22: =IF(G151="","",G151) -> 0
G23: =SUM(G19:G22) -> 0
A25: SUB-CONTRACTOR 1 | C25: =IF('Sub1'!C10="","",'Sub1'!C10) -> 
A26: 1) | B26: LABOR AND BURDEN | G26: =+'Sub1'!G19 -> 0
A27: 2) | B27: MATERIALS AND SUPPLIES | G27: =+'Sub1'!G29 -> 0
A28: 3) | B28: EQUIPMENT | G28: =+'Sub1'!G40 -> 0
A29: 4) | B29: INDIRECT COST, EXPENSES, AND PROFIT | G29: =+'Sub1'!G46 -> 0
G30: =SUM(G26:G29) -> 0
A32: SUB-CONTRACTOR 2 | C32: =IF('Sub2'!C10="","",'Sub2'!C10) -> 
A33: 1) | B33: LABOR AND BURDEN | G33: =+'Sub2'!G19 -> 0
A34: 2) | B34: MATERIALS AND SUPPLIES | G34: =+'Sub2'!G29 -> 0
A35: 3) | B35: EQUIPMENT | G35: =+'Sub2'!G40 -> 0
A36: 4) | B36: INDIRECT COST, EXPENSES, AND PROFIT | G36: =+'Sub2'!G46 -> 0
G37: =SUM(G33:G36) -> 0
A39: SUB-CONTRACTOR 3 | C39: =IF('Sub3'!C10="","",'Sub3'!C10) -> 
A40: 1) | B40: LABOR AND BURDEN | G40: =+'Sub3'!G19 -> 0
A41: 2) | B41: MATERIALS AND SUPPLIES | G41: =+'Sub3'!G29 -> 0
A42: 3) | B42: EQUIPMENT | G42: =+'Sub3'!G40 -> 0
A43: 4) | B43: INDIRECT COST, EXPENSES, AND PROFIT | G43: =+'Sub3'!G46 -> 0
G44: =SUM(G40:G43) -> 0
A46: SUB-CONTRACTOR 4 | C46: =IF('Sub4'!C10="","",'Sub4'!C10) -> 
A47: 1) | B47: LABOR AND BURDEN | G47: =+'Sub4'!G19 -> 0
A48: 2) | B48: MATERIALS AND SUPPLIES | G48: =+'Sub4'!G29 -> 0
A49: 3) | B49: EQUIPMENT | G49: =+'Sub4'!G40 -> 0
A50: 4) | B50: INDIRECT COST, EXPENSES, AND PROFIT | G50: =+'Sub4'!G46 -> 0
G51: =SUM(G47:G50) -> 0
A53: SUB-CONTRACTOR 5 | C53: =IF('Sub5'!C10="","",'Sub5'!C10) -> 
A54: 1) | B54: LABOR AND BURDEN | G54: =+'Sub5'!G19 -> 0
A55: 2) | B55: MATERIALS AND SUPPLIES | G55: =+'Sub5'!G29 -> 0
A56: 3) | B56: EQUIPMENT | G56: =+'Sub5'!G40 -> 0
A57: 4) | B57: INDIRECT COST, EXPENSES, AND PROFIT | G57: =+'Sub5'!G46 -> 0
G58: =SUM(G54:G57) -> 0
A60: SUB-CONTRACTOR 6 | C60: =IF('Sub6'!C10="","",'Sub6'!C10) -> 
A61: 1) | B61: LABOR AND BURDEN | G61: =+'Sub6'!G19 -> 0
A62: 2) | B62: MATERIALS AND SUPPLIES | G62: =+'Sub6'!G29 -> 0
A63: 3) | B63: EQUIPMENT | G63: =+'Sub6'!G40 -> 0
A64: 4) | B64: INDIRECT COST, EXPENSES, AND PROFIT | G64: =+'Sub6'!G46 -> 0
G65: =SUM(G61:G64) -> 0
A67: SUB-CONTRACTOR 7 | C67: =IF('Sub7'!C10="","",'Sub7'!C10) -> 
A68: 1) | B68: LABOR AND BURDEN | G68: =+'Sub7'!G19 -> 0
A69: 2) | B69: MATERIALS AND SUPPLIES | G69: =+'Sub7'!G29 -> 0
A70: 3) | B70: EQUIPMENT | G70: =+'Sub7'!G40 -> 0
A71: 4) | B71: INDIRECT COST, EXPENSES, AND PROFIT | G71: =+'Sub7'!G46 -> 0
G72: =SUM(G68:G71) -> 0
A74: SUB-CONTRACTOR 8 | C74: =IF('Sub8'!C10="","",'Sub8'!C10) -> 
A75: 1) | B75: LABOR AND BURDEN | G75: =+'Sub8'!G19 -> 0
A76: 2) | B76: MATERIALS AND SUPPLIES | G76: =+'Sub8'!G29 -> 0
A77: 3) | B77: EQUIPMENT | G77: =+'Sub8'!G40 -> 0
A78: 4) | B78: INDIRECT COST, EXPENSES, AND PROFIT | G78: =+'Sub8'!G46 -> 0
G79: =SUM(G75:G78) -> 0
A81: SUB-CONTRACTOR 9 | C81: =IF('Sub9'!C10="","",'Sub9'!C10) -> 
A82: 1) | B82: LABOR AND BURDEN | G82: =+'Sub9'!G19 -> 0
A83: 2) | B83: MATERIALS AND SUPPLIES | G83: =+'Sub9'!G29 -> 0
A84: 3) | B84: EQUIPMENT | G84: =+'Sub9'!G40 -> 0
A85: 4) | B85: INDIRECT COST, EXPENSES, AND PROFIT | G85: =+'Sub9'!G46 -> 0
G86: =SUM(G82:G85) -> 0
A88: SUB-CONTRACTOR 10 | C88: =IF('Sub9'!C18="","",'Sub9'!C18) -> 
A89: 1) | B89: LABOR AND BURDEN | G89: =+'Sub10'!G19 -> 0
A90: 2) | B90: MATERIALS AND SUPPLIES | G90: ='Sub10'!G29 -> 0
A91: 3) | B91: EQUIPMENT | G91: =+'Sub10'!G40 -> 0
A92: 4) | B92: INDIRECT COST, EXPENSES, AND PROFIT | G92: =+'Sub10'!G54 -> 0
G93: =SUM(G89:G92) -> 0
A95: TOTAL COST OF INCREASE, DECREASE OR ALTERATION IN THE WORK | G95: =SUM(G23,G30,G37,G44,G51,G58,G65,G72,G79,G86,G93) -> 0
A98: CONTRACTOR:
A100: 1) | B100: LABOR AND BURDEN
A102: LABOR | C102: TIME | D102: UNIT | E102: RATE | F102: BURDEN (%) | G102: LABOR plus BURDEN SUB-TOTAL
G103: =+(C103*E103)+ (F103*(C103*E103)) -> 0
G104: =+(C104*E104)+ (F104*(C104*E104)) -> 0
F105: Row Control
F107: TOTAL LABOR AND BURDEN | G107: =SUM(G103:G104) -> 0
A110: 2) | B110: MATERIALS AND SUPPLIES
A112: MATERIAL | C112: QTY. | D112: UNIT | E112: RATE | G112: SUB-TOTAL
G113: =+C113*E113 -> 0
G114: =+C114*E114 -> 0
F115: Row Control
F117: TOTAL MATERIALS AND SUPPLIES | G117: =SUM(G113:G114) -> 0
A120: 3) | B120: EQUIPMENT
A122: EQUIPMENT | C122: OPERATING | E122: STAND-BY / IDLE | G122: SUB-TOTAL
C123: FHWA Rate w/ Adjustments | D123: HRS | E123: Standby Rate | F123: HRS
G124: =+(C124*D124)+(E124*F124) -> 0
G125: =+(C125*D125)+(E125*F125) -> 0
F126: Row Control
F128: TOTAL EQUIPMENT | G128: =SUM(G124:G125) -> 0
A131: 4) | B131: INDIRECT COST, EXPENSES, AND PROFIT (1) or (2), whichever is greater:
B133: a) | C133: 17.5% of the sum of (1), (2), & (3) above: | G133: =SUM(G107,G117,G128)*17.5% -> 0
B134: 1. | C134: BOND: For any additional bond for the additional or unforeseen work, the Contractor shall provide clear and convincing proof that the bond has actually been provided and paid for a separate bond premium for such additional or unforeseen work.
B135: 2. | C135: SUBCONTRACTOR MARKUP:
C136: Subcontractor Cost for Extra Work: | F136: =SUM('Sub1'!G48,'Sub2'!G48,'Sub3'!G48,'Sub4'!G48,'Sub5'!G48,'Sub6'!G48,'Sub7'!G48,'Sub8'!G48,'Sub9'!G48 ) -> 0
C137: First $50,000 | D137: 0.1 | F137: =IF(F136>50000,50000,F136) -> 0 | G137: =+F137*D137 -> 0
C138: Over $50,000 | D138: 0.05 | F138: =+F136-F137 -> 0 | G138: =+F138*D138 -> 0
G139: =SUM(G133:G138) -> 0
B141: b) | C141: Average overhead per day = Ds:
C143: As = | D143: Original Contract Amount minus Original Subcontract Amount(s)*
C144: B = | D144: Original Contract Time
C145: C = | D145: 0.08
C146: Ds = | D146: As x C | G146: =IF(G143="",0,(G143*D145)/G144) -> 0
D147: B
C148: Calendar days of entitlement that are in excess of the first 10 cumulative entitlement calendar days for the contract:
G149: =IF(G146="",0,G146*G148) -> 0
F151: TOTAL INDIRECT COST, EXPENSES, AND PROFIT | G151: =MAX(G139,G149) -> 0
B153: * Deduct Original Subcontract Amount(s) of subcontractor(s) performing the work.
B154: NOTE: If there is no subcontracted work, use the Original Contract Amount.

Sheet Sub1
A1: SUBCONTRACTOR #1 INFORMATION
A3: FIN#: | C3: =IF(Contractor!C4="","",Contractor!C4) ->  | D3: Contract #: | E3: =IF(Contractor!E4="","",Contractor!E4) ->  | F3: Fed Proj. #: | G3: =IF(Contractor!G4="","",Contractor!G4) -> 
A4: Point of Contact (Name/Phone #): | C4: =IF(Contractor!C5="","",Contractor!C5) -> 
A5: Email Address: | C5: =IF(Contractor!C6="","",Contractor!C6) -> 
A6: Estimate Prepared By: | C6: =IF(Contractor!C7="","",Contractor!C7) -> 
A7: Company: | C7: =IF(Contractor!C8="","",Contractor!C8) -> 
A8: ********************************************************************************************
A10: SUB-CONTRACTOR:
A12: 1) | B12: LABOR AND BURDEN
A14: LABOR | C14: TIME | D14: UNIT | E14: RATE | F14: BURDEN (%) | G14: LABOR plus BURDEN SUB-TOTAL
G15: =+(C15*E15)+ (F15*(C15*E15)) -> 0
G16: =+(C16*E16)+ (F16*(C16*E16)) -> 0
F17: Row Control
F19: TOTAL LABOR AND BURDEN | G19: =SUM(G15:G16) -> 0
A22: 2) | B22: MATERIALS AND SUPPLIES
A24: MATERIAL | C24: QTY. | D24: UNIT | E24: RATE | G24: SUB-TOTAL
G25: =+C25*E25 -> 0
G26: =+C26*E26 -> 0
F27: Row Control
F29: TOTAL MATERIALS AND SUPPLIES | G29: =SUM(G25:G26) -> 0
A32: 3) | B32: EQUIPMENT
A34: EQUIPMENT | C34: OPERATING | E34: STAND-BY / IDLE | G34: SUB-TOTAL
C35: FHWA Rate w/ Adjustments | D35: HRS | E35: Standby Rate | F35: HRS
G36: =+(C36*D36)+(E36*F36) -> 0
G37: =+(C37*D37)+(E37*F37) -> 0
F38: Row Control
F40: TOTAL EQUIPMENT | G40: =SUM(G36:G37) -> 0
A42: 4) | B42: INDIRECT COST, EXPENSES, AND PROFIT
B44: a) | C44: 17.5% of the sum of a), b), & c) above: | G44: =SUM(G19,G29,G40)*17.5% -> 0
B45: 1. | C45: BOND: For any additional bond for the additional or unforeseen work, the Contractor shall provide clear and convincing proof that the bond has actually been provided and paid for a separate bond premium for such additional or unforeseen work.
F46: TOTAL INDIRECT COST, EXPENSES, AND PROFIT | G46: =SUM(G44:G45) -> 0
F48: TOTAL SUBCONTRACTOR COST: | G48: =SUM(G19,G29,G40,G46) -> 0

Sheet Sub2
A1: SUBCONTRACTOR #2 INFORMATION
A3: FIN#: | C3: =IF(Contractor!C4="","",Contractor!C4) ->  | D3: Contract #: | E3: =IF(Contractor!E4="","",Contractor!E4) ->  | F3: Fed Proj. #: | G3: =IF(Contractor!G4="","",Contractor!G4) -> 
A4: Point of Contact (Name/Phone #): | C4: =IF(Contractor!C5="","",Contractor!C5) -> 
A5: Email Address: | C5: =IF(Contractor!C6="","",Contractor!C6) -> 
A6: Estimate Prepared By: | C6: =IF(Contractor!C7="","",Contractor!C7) -> 
A7: Company: | C7: =IF(Contractor!C8="","",Contractor!C8) -> 
A8: ********************************************************************************************
A10: SUB-CONTRACTOR:
A12: 1) | B12: LABOR AND BURDEN
A14: LABOR | C14: TIME | D14: UNIT | E14: RATE | F14: BURDEN (%) | G14: LABOR plus BURDEN SUB-TOTAL
G15: =+(C15*E15)+ (F15*(C15*E15)) -> 0
G16: =+(C16*E16)+ (F16*(C16*E16)) -> 0
F17: Row Control
F19: TOTAL LABOR AND BURDEN | G19: =SUM(G15:G16) -> 0
A22: 2) | B22: MATERIALS AND SUPPLIES
A24: MATERIAL | C24: QTY. | D24: UNIT | E24: RATE | G24: SUB-TOTAL
G25: =+C25*E25 -> 0
G26: =+C26*E26 -> 0
F27: Row Control
F29: TOTAL MATERIALS AND SUPPLIES | G29: =SUM(G25:G26) -> 0
A32: 3) | B32: EQUIPMENT
A34: EQUIPMENT | C34: OPERATING | E34: STAND-BY / IDLE | G34: SUB-TOTAL
C35: FHWA Rate w/ Adjustments | D35: HRS | E35: Standby Rate | F35: HRS
G36: =+(C36*D36)+(E36*F36) -> 0
G37: =+(C37*D37)+(E37*F37) -> 0
F38: Row Control
F40: TOTAL EQUIPMENT | G40: =SUM(G36:G37) -> 0
A42: 4) | B42: INDIRECT COST, EXPENSES, AND PROFIT
B44: a) | C44: 17.5% of the sum of a), b), & c) above: | G44: =SUM(G19,G29,G40)*17.5% -> 0
B45: 1. | C45: BOND: For any additional bond for the additional or unforeseen work, the Contractor shall provide clear and convincing proof that the bond has actually been provided and paid for a separate bond premium for such additional or unforeseen work.
F46: TOTAL INDIRECT COST, EXPENSES, AND PROFIT | G46: =SUM(G44:G45) -> 0
F48: TOTAL SUBCONTRACTOR COST: | G48: =SUM(G19,G29,G40,G46) -> 0

Sheet Sub3
A1: SUBCONTRACTOR #3 INFORMATION
A3: FIN#: | C3: =IF(Contractor!C4="","",Contractor!C4) ->  | D3: Contract #: | E3: =IF(Contractor!E4="","",Contractor!E4) ->  | F3: Fed Proj. #: | G3: =IF(Contractor!G4="","",Contractor!G4) -> 
A4: Point of Contact (Name/Phone #): | C4: =IF(Contractor!C5="","",Contractor!C5) -> 
A5: Email Address: | C5: =IF(Contractor!C6="","",Contractor!C6) -> 
A6: Estimate Prepared By: | C6: =IF(Contractor!C7="","",Contractor!C7) -> 
A7: Company: | C7: =IF(Contractor!C8="","",Contractor!C8) -> 
A8: ********************************************************************************************
A10: SUB-CONTRACTOR:
A12: 1) | B12: LABOR AND BURDEN
A14: LABOR | C14: TIME | D14: UNIT | E14: RATE | F14: BURDEN (%) | G14: LABOR plus BURDEN SUB-TOTAL
G15: =+(C15*E15)+ (F15*(C15*E15)) -> 0
G16: =+(C16*E16)+ (F16*(C16*E16)) -> 0
F17: Row Control
F19: TOTAL LABOR AND BURDEN | G19: =SUM(G15:G16) -> 0
A22: 2) | B22: MATERIALS AND SUPPLIES
A24: MATERIAL | C24: QTY. | D24: UNIT | E24: RATE | G24: SUB-TOTAL
G25: =+C25*E25 -> 0
G26: =+C26*E26 -> 0
F27: Row Control
F29: TOTAL MATERIALS AND SUPPLIES | G29: =SUM(G25:G26) -> 0
A32: 3) | B32: EQUIPMENT
A34: EQUIPMENT | C34: OPERATING | E34: STAND-BY / IDLE | G34: SUB-TOTAL
C35: FHWA Rate w/ Adjustments | D35: HRS | E35: Standby Rate | F35: HRS
G36: =+(C36*D36)+(E36*F36) -> 0
G37: =+(C37*D37)+(E37*F37) -> 0
F38: Row Control
F40: TOTAL EQUIPMENT | G40: =SUM(G36:G37) -> 0
A42: 4) | B42: INDIRECT COST, EXPENSES, AND PROFIT
B44: a) | C44: 17.5% of the sum of a), b), & c) above: | G44: =SUM(G19,G29,G40)*17.5% -> 0
B45: 1. | C45: BOND: For any additional bond for the additional or unforeseen work, the Contractor shall provide clear and convincing proof that the bond has actually been provided and paid for a separate bond premium for such additional or unforeseen work.
F46: TOTAL INDIRECT COST, EXPENSES, AND PROFIT | G46: =SUM(G44:G45) -> 0
F48: TOTAL SUBCONTRACTOR COST: | G48: =SUM(G19,G29,G40,G46) -> 0

Sheet Sub4
A1: SUBCONTRACTOR #4 INFORMATION
A3: FIN#: | C3: =IF(Contractor!C4="","",Contractor!C4) ->  | D3: Contract #: | E3: =IF(Contractor!E4="","",Contractor!E4) ->  | F3: Fed Proj. #: | G3: =IF(Contractor!G4="","",Contractor!G4) -> 
A4: Point of Contact (Name/Phone #): | C4: =IF(Contractor!C5="","",Contractor!C5) -> 
A5: Email Address: | C5: =IF(Contractor!C6="","",Contractor!C6) -> 
A6: Estimate Prepared By: | C6: =IF(Contractor!C7="","",Contractor!C7) -> 
A7: Company: | C7: =IF(Contractor!C8="","",Contractor!C8) -> 
A8: ********************************************************************************************
A10: SUB-CONTRACTOR:
A12: 1) | B12: LABOR AND BURDEN
A14: LABOR | C14: TIME | D14: UNIT | E14: RATE | F14: BURDEN (%) | G14: LABOR plus BURDEN SUB-TOTAL
G15: =+(C15*E15)+ (F15*(C15*E15)) -> 0
G16: =+(C16*E16)+ (F16*(C16*E16)) -> 0
F17: Row Control
F19: TOTAL LABOR AND BURDEN | G19: =SUM(G15:G16) -> 0
A22: 2) | B22: MATERIALS AND SUPPLIES
A24: MATERIAL | C24: QTY. | D24: UNIT | E24: RATE | G24: SUB-TOTAL
G25: =+C25*E25 -> 0
G26: 0
F27: Row Control
F29: TOTAL MATERIALS AND SUPPLIES | G29: =SUM(G25:G26) -> 0
A32: 3) | B32: EQUIPMENT
A34: EQUIPMENT | C34: OPERATING | E34: STAND-BY / IDLE | G34: SUB-TOTAL
C35: FHWA Rate w/ Adjustments | D35: HRS | E35: Standby Rate | F35: HRS
G36: =+(C36*D36)+(E36*F36) -> 0
G37: 0
F38: Row Control
F40: TOTAL EQUIPMENT | G40: =SUM(G36:G37) -> 0
A42: 4) | B42: INDIRECT COST, EXPENSES, AND PROFIT
B44: a) | C44: 17.5% of the sum of a), b), & c) above: | G44: =SUM(G19,G29,G40)*17.5% -> 0
B45: 1. | C45: BOND: For any additional bond for the additional or unforeseen work, the Contractor shall provide clear and convincing proof that the bond has actually been provided and paid for a separate bond premium for such additional or unforeseen work.
F46: TOTAL INDIRECT COST, EXPENSES, AND PROFIT | G46: =SUM(G44:G45) -> 0
F48: TOTAL SUBCONTRACTOR COST: | G48: =SUM(G19,G29,G40,G46) -> 0

Sheet Sub5
A1: SUBCONTRACTOR #5 INFORMATION
A3: FIN#: | C3: =IF(Contractor!C4="","",Contractor!C4) ->  | D3: Contract #: | E3: =IF(Contractor!E4="","",Contractor!E4) ->  | F3: Fed Proj. #: | G3: =IF(Contractor!G4="","",Contractor!G4) -> 
A4: Point of Contact (Name/Phone #): | C4: =IF(Contractor!C5="","",Contractor!C5) -> 
A5: Email Address: | C5: =IF(Contractor!C6="","",Contractor!C6) -> 
A6: Estimate Prepared By: | C6: =IF(Contractor!C7="","",Contractor!C7) -> 
A7: Company: | C7: =IF(Contractor!C8="","",Contractor!C8) -> 
A8: ********************************************************************************************
A10: SUB-CONTRACTOR:
A12: 1) | B12: LABOR AND BURDEN
A14: LABOR | C14: TIME | D14: UNIT | E14: RATE | F14: BURDEN (%) | G14: LABOR plus BURDEN SUB-TOTAL
G15: =+(C15*E15)+ (F15*(C15*E15)) -> 0
G16: =+(C16*E16)+ (F16*(C16*E16)) -> 0
F17: Row Control
F19: TOTAL LABOR AND BURDEN | G19: =SUM(G15:G16) -> 0
A22: 2) | B22: MATERIALS AND SUPPLIES
A24: MATERIAL | C24: QTY. | D24: UNIT | E24: RATE | G24: SUB-TOTAL
G25: =+C25*E25 -> 0
G26: =+C26*E26 -> 0
F27: Row Control
F29: TOTAL MATERIALS AND SUPPLIES | G29: =SUM(G25:G26) -> 0
A32: 3) | B32: EQUIPMENT
A34: EQUIPMENT | C34: OPERATING | E34: STAND-BY / IDLE | G34: SUB-TOTAL
C35: FHWA Rate w/ Adjustments | D35: HRS | E35: Standby Rate | F35: HRS
G36: =+(C36*D36)+(E36*F36) -> 0
G37: =+(C37*D37)+(E37*F37) -> 0
F38: Row Control
F40: TOTAL EQUIPMENT | G40: =SUM(G36:G37) -> 0
A42: 4) | B42: INDIRECT COST, EXPENSES, AND PROFIT
B44: a) | C44: 17.5% of the sum of a), b), & c) above: | G44: =SUM(G19,G29,G40)*17.5% -> 0
B45: 1. | C45: BOND: For any additional bond for the additional or unforeseen work, the Contractor shall provide clear and convincing proof that the bond has actually been provided and paid for a separate bond premium for such additional or unforeseen work.
F46: TOTAL INDIRECT COST, EXPENSES, AND PROFIT | G46: =SUM(G44:G45) -> 0
F48: TOTAL SUBCONTRACTOR COST: | G48: =SUM(G19,G29,G40,G46) -> 0

Sheet Sub6
A1: SUBCONTRACTOR #6 INFORMATION
A3: FIN#: | C3: =IF(Contractor!C4="","",Contractor!C4) ->  | D3: Contract #: | E3: =IF(Contractor!E4="","",Contractor!E4) ->  | F3: Fed Proj. #: | G3: =IF(Contractor!G4="","",Contractor!G4) -> 
A4: Point of Contact (Name/Phone #): | C4: =IF(Contractor!C5="","",Contractor!C5) -> 
A5: Email Address: | C5: =IF(Contractor!C6="","",Contractor!C6) -> 
A6: Estimate Prepared By: | C6: =IF(Contractor!C7="","",Contractor!C7) -> 
A7: Company: | C7: =IF(Contractor!C8="","",Contractor!C8) -> 
A8: ********************************************************************************************
A10: SUB-CONTRACTOR:
A12: 1) | B12: LABOR AND BURDEN
A14: LABOR | C14: TIME | D14: UNIT | E14: RATE | F14: BURDEN (%) | G14: LABOR plus BURDEN SUB-TOTAL
G15: =+(C15*E15)+ (F15*(C15*E15)) -> 0
G16: =+(C16*E16)+ (F16*(C16*E16)) -> 0
F17: Row Control
F19: TOTAL LABOR AND BURDEN | G19: =SUM(G15:G16) -> 0
A22: 2) | B22: MATERIALS AND SUPPLIES
A24: MATERIAL | C24: QTY. | D24: UNIT | E24: RATE | G24: SUB-TOTAL
G25: =+C25*E25 -> 0
G26: 0
F27: Row Control
F29: TOTAL MATERIALS AND SUPPLIES | G29: =SUM(G25:G26) -> 0
A32: 3) | B32: EQUIPMENT
A34: EQUIPMENT | C34: OPERATING | E34: STAND-BY / IDLE | G34: SUB-TOTAL
C35: FHWA Rate w/ Adjustments | D35: HRS | E35: Standby Rate | F35: HRS
G36: =+(C36*D36)+(E36*F36) -> 0
G37: =+(C37*D37)+(E37*F37) -> 0
F38: Row Control
F40: TOTAL EQUIPMENT | G40: =SUM(G36:G37) -> 0
A42: 4) | B42: INDIRECT COST, EXPENSES, AND PROFIT
B44: a) | C44: 17.5% of the sum of a), b), & c) above: | G44: =SUM(G19,G29,G40)*17.5% -> 0
B45: 1. | C45: BOND: For any additional bond for the additional or unforeseen work, the Contractor shall provide clear and convincing proof that the bond has actually been provided and paid for a separate bond premium for such additional or unforeseen work.
F46: TOTAL INDIRECT COST, EXPENSES, AND PROFIT | G46: =SUM(G44:G45) -> 0
F48: TOTAL SUBCONTRACTOR COST: | G48: =SUM(G19,G29,G40,G46) -> 0

Sheet Sub7
A1: SUBCONTRACTOR #7 INFORMATION
A3: FIN#: | C3: =IF(Contractor!C4="","",Contractor!C4) ->  | D3: Contract #: | E3: =IF(Contractor!E4="","",Contractor!E4) ->  | F3: Fed Proj. #: | G3: =IF(Contractor!G4="","",Contractor!G4) -> 
A4: Point of Contact (Name/Phone #): | C4: =IF(Contractor!C5="","",Contractor!C5) -> 
A5: Email Address: | C5: =IF(Contractor!C6="","",Contractor!C6) -> 
A6: Estimate Prepared By: | C6: =IF(Contractor!C7="","",Contractor!C7) -> 
A7: Company: | C7: =IF(Contractor!C8="","",Contractor!C8) -> 
A8: ********************************************************************************************
A10: SUB-CONTRACTOR:
A12: 1) | B12: LABOR AND BURDEN
A14: LABOR | C14: TIME | D14: UNIT | E14: RATE | F14: BURDEN (%) | G14: LABOR plus BURDEN SUB-TOTAL
G15: =+(C15*E15)+ (F15*(C15*E15)) -> 0
G16: =+(C16*E16)+ (F16*(C16*E16)) -> 0
F17: Row Control
F19: TOTAL LABOR AND BURDEN | G19: =SUM(G15:G16) -> 0
A22: 2) | B22: MATERIALS AND SUPPLIES
A24: MATERIAL | C24: QTY. | D24: UNIT | E24: RATE | G24: SUB-TOTAL
G25: =+C25*E25 -> 0
G26: =+C26*E26 -> 0
F27: Row Control
F29: TOTAL MATERIALS AND SUPPLIES | G29: =SUM(G25:G26) -> 0
A32: 3) | B32: EQUIPMENT
A34: EQUIPMENT | C34: OPERATING | E34: STAND-BY / IDLE | G34: SUB-TOTAL
C35: FHWA Rate w/ Adjustments | D35: HRS | E35: Standby Rate | F35: HRS
G36: =+(C36*D36)+(E36*F36) -> 0
G37: =+(C37*D37)+(E37*F37) -> 0
F38: Row Control
F40: TOTAL EQUIPMENT | G40: =SUM(G36:G37) -> 0
A42: 4) | B42: INDIRECT COST, EXPENSES, AND PROFIT
B44: a) | C44: 17.5% of the sum of a), b), & c) above: | G44: =SUM(G19,G29,G40)*17.5% -> 0
B45: 1. | C45: BOND: For any additional bond for the additional or unforeseen work, the Contractor shall provide clear and convincing proof that the bond has actually been provided and paid for a separate bond premium for such additional or unforeseen work.
F46: TOTAL INDIRECT COST, EXPENSES, AND PROFIT | G46: =SUM(G44:G45) -> 0
F48: TOTAL SUBCONTRACTOR COST: | G48: =SUM(G19,G29,G40,G46) -> 0

Sheet Sub8
A1: SUBCONTRACTOR #8 INFORMATION
A3: FIN#: | C3: =IF(Contractor!C4="","",Contractor!C4) ->  | D3: Contract #: | E3: =IF(Contractor!E4="","",Contractor!E4) ->  | F3: Fed Proj. #: | G3: =IF(Contractor!G4="","",Contractor!G4) -> 
A4: Point of Contact (Name/Phone #): | C4: =IF(Contractor!C5="","",Contractor!C5) -> 
A5: Email Address: | C5: =IF(Contractor!C6="","",Contractor!C6) -> 
A6: Estimate Prepared By: | C6: =IF(Contractor!C7="","",Contractor!C7) -> 
A7: Company: | C7: =IF(Contractor!C8="","",Contractor!C8) -> 
A8: ********************************************************************************************
A10: SUB-CONTRACTOR:
A12: 1) | B12: LABOR AND BURDEN
A14: LABOR | C14: TIME | D14: UNIT | E14: RATE | F14: BURDEN (%) | G14: LABOR plus BURDEN SUB-TOTAL
G15: =+(C15*E15)+ (F15*(C15*E15)) -> 0
G16: =+(C16*E16)+ (F16*(C16*E16)) -> 0
F17: Row Control
F19: TOTAL LABOR AND BURDEN | G19: =SUM(G15:G16) -> 0
A22: 2) | B22: MATERIALS AND SUPPLIES
A24: MATERIAL | C24: QTY. | D24: UNIT | E24: RATE | G24: SUB-TOTAL
G25: =+C25*E25 -> 0
G26: =+C26*E26 -> 0
F27: Row Control
F29: TOTAL MATERIALS AND SUPPLIES | G29: =SUM(G25:G26) -> 0
A32: 3) | B32: EQUIPMENT
A34: EQUIPMENT | C34: OPERATING | E34: STAND-BY / IDLE | G34: SUB-TOTAL
C35: FHWA Rate w/ Adjustments | D35: HRS | E35: Standby Rate | F35: HRS
G36: =+(C36*D36)+(E36*F36) -> 0
G37: =+(C37*D37)+(E37*F37) -> 0
F38: Row Control
F40: TOTAL EQUIPMENT | G40: =SUM(G36:G37) -> 0
A42: 4) | B42: INDIRECT COST, EXPENSES, AND PROFIT
B44: a) | C44: 17.5% of the sum of a), b), & c) above: | G44: =SUM(G19,G29,G40)*17.5% -> 0
B45: 1. | C45: BOND: For any additional bond for the additional or unforeseen work, the Contractor shall provide clear and convincing proof that the bond has actually been provided and paid for a separate bond premium for such additional or unforeseen work.
F46: TOTAL INDIRECT COST, EXPENSES, AND PROFIT | G46: =SUM(G44:G45) -> 0
F48: TOTAL SUBCONTRACTOR COST: | G48: =SUM(G19,G29,G40,G46) -> 0

Sheet Sub9
A1: SUBCONTRACTOR #9 INFORMATION
A3: FIN#: | C3: =IF(Contractor!C4="","",Contractor!C4) ->  | D3: Contract #: | E3: =IF(Contractor!E4="","",Contractor!E4) ->  | F3: Fed Proj. #: | G3: =IF(Contractor!G4="","",Contractor!G4) -> 
A4: Point of Contact (Name/Phone #): | C4: =IF(Contractor!C5="","",Contractor!C5) -> 
A5: Email Address: | C5: =IF(Contractor!C6="","",Contractor!C6) -> 
A6: Estimate Prepared By: | C6: =IF(Contractor!C7="","",Contractor!C7) -> 
A7: Company: | C7: =IF(Contractor!C8="","",Contractor!C8) -> 
A8: ********************************************************************************************
A10: SUB-CONTRACTOR:
A12: 1) | B12: LABOR AND BURDEN
A14: LABOR | C14: TIME | D14: UNIT | E14: RATE | F14: BURDEN (%) | G14: LABOR plus BURDEN SUB-TOTAL
G15: =+(C15*E15)+ (F15*(C15*E15)) -> 0
G16: =+(C16*E16)+ (F16*(C16*E16)) -> 0
F17: Row Control
F19: TOTAL LABOR AND BURDEN | G19: =SUM(G15:G16) -> 0
A22: 2) | B22: MATERIALS AND SUPPLIES
A24: MATERIAL | C24: QTY. | D24: UNIT | E24: RATE | G24: SUB-TOTAL
G25: =+C25*E25 -> 0
G26: =+C26*E26 -> 0
F27: Row Control
F29: TOTAL MATERIALS AND SUPPLIES | G29: =SUM(G25:G26) -> 0
A32: 3) | B32: EQUIPMENT
A34: EQUIPMENT | C34: OPERATING | E34: STAND-BY / IDLE | G34: SUB-TOTAL
C35: FHWA Rate w/ Adjustments | D35: HRS | E35: Standby Rate | F35: HRS
G36: =+(C36*D36)+(E36*F36) -> 0
G37: =+(C37*D37)+(E37*F37) -> 0
F38: Row Control
F40: TOTAL EQUIPMENT | G40: =SUM(G36:G37) -> 0
A42: 4) | B42: INDIRECT COST, EXPENSES, AND PROFIT
B44: a) | C44: 17.5% of the sum of a), b), & c) above: | G44: =SUM(G19,G29,G40)*17.5% -> 0
B45: 1. | C45: BOND: For any additional bond for the additional or unforeseen work, the Contractor shall provide clear and convincing proof that the bond has actually been provided and paid for a separate bond premium for such additional or unforeseen work.
F46: TOTAL INDIRECT COST, EXPENSES, AND PROFIT | G46: =SUM(G44:G45) -> 0
F48: TOTAL SUBCONTRACTOR COST: | G48: =SUM(G19,G29,G40,G46) -> 0

Sheet Sub10
A1: SUBCONTRACTOR #10 INFORMATION
A3: FIN#: | C3: =IF(Contractor!C4="","",Contractor!C4) ->  | D3: Contract #: | E3: =IF(Contractor!E4="","",Contractor!E4) ->  | F3: Fed Proj. #: | G3: =IF(Contractor!G4="","",Contractor!G4) -> 
A4: Point of Contact (Name/Phone #): | C4: =IF(Contractor!C5="","",Contractor!C5) -> 
A5: Email Address: | C5: =IF(Contractor!C6="","",Contractor!C6) -> 
A6: Estimate Prepared By: | C6: =IF(Contractor!C7="","",Contractor!C7) -> 
A7: Company: | C7: =IF(Contractor!C8="","",Contractor!C8) -> 
A8: ********************************************************************************************
A10: SUB-CONTRACTOR:
A12: 1) | B12: LABOR AND BURDEN
A14: LABOR | C14: TIME | D14: UNIT | E14: RATE | F14: BURDEN (%) | G14: LABOR plus BURDEN SUB-TOTAL
G15: =+(C15*E15)+ (F15*(C15*E15)) -> 0
G16: =+(C16*E16)+ (F16*(C16*E16)) -> 0
F17: Row Control
F19: TOTAL LABOR and BURDEN | G19: =SUM(G15:G16) -> 0
A22: 2) | B22: MATERIALS AND SUPPLIES
A24: MATERIAL | C24: QTY. | D24: UNIT | E24: RATE | G24: SUB-TOTAL
G25: =+C25*E25 -> 0
G26: =+C26*E26 -> 0
F27: Row Control
F29: TOTAL MATERIALS AND SUPPLIES | G29: =SUM(G25:G26) -> 0
A32: 3) | B32: EQUIPMENT
A34: EQUIPMENT | C34: OPERATING | E34: STAND-BY / IDLE | G34: SUB-TOTAL
C35: FHWA Rate w/ Adjustments | D35: HRS | E35: Standby Rate | F35: HRS
G36: =+(C36*D36)+(E36*F36) -> 0
G37: 0
F38: Row Control
F40: TOTAL EQUIPMENT | G40: =SUM(G36:G37) -> 0
A42: 4) | B42: INDIRECT COST, EXPENSES, AND PROFIT
B44: a) | C44: 17.5% of the sum of a), b), & c) above: | G44: =SUM(G19,G29,G40)*17.5% -> 0
B45: 1. | C45: BOND: For any additional bond for the additional or unforeseen work, the Contractor shall provide clear and convincing proof that the bond has actually been provided and paid for a separate bond premium for such additional or unforeseen work.
F46: TOTAL INDIRECT COST, EXPENSES, AND PROFIT | G46: =SUM(G44:G45) -> 0
F48: TOTAL SUBCONTRACTOR COST: | G48: =SUM(G19,G29,G40,G46) -> 0

Sheet Option 2
A5: Option 2
A6: Calculations using Statewide Averages
A7: Instructions
A9: NOTE: Only the yellow cells require entry by project personnel. Tabs for Option 1 are not required.
A11: On the SWA tab:
A12: Step 1: Enter the Pay Item, Description, Unit, Statewide Average, and Quantity for all applicable pay items.
A13: Step 2: Enter any applicable Comments regarding the estimate
A14: Step 3: Apply digital signature to the CONTRACTOR tab
A15: Step 4: Submit electronically as an Excel spreadsheet to the Department
A18: Link to Historical Cost Website to obtain Statewide Averages:
A19: http://www.fdot.gov/programmanagement/Estimates/HistoricalCostInformation/HistoricalCost.shtm
A21: Row Control:
A22: Select the appropriate (+) or (-) button to add or remove rows as needed.

Sheet SWA
A1: ENGINEER'S COST ESTIMATE USING STATEWIDE AVERAGES
A3: FIN#: | D3: Contract #: | F3: Fed Proj. #:
A4: Point of Contact (Name/Phone #):
A5: Email Address:
A6: Estimate Prepared By:
A7: Company:
A15: ******************************************************************************************************
A17: Prime Contractor:
A19: a) | B19: Estimate based on Statewide Average
A21: Pay Item | C21: Description | D21: UNIT | E21: Statewide Average | F21: Quantity | G21: Estimated Cost
G22: =E22*F22 -> 0
G23: =E23*F23 -> 0
F24: Row Control
D26: TOTAL CONTRACTOR COST: | G26: =SUM(G22:G23) -> 0
B28: Comments:

Sheet SWA Raw Convert
A1: FOR INFORMATIONAL PURPOSES ONLY
A4: Prime Only No Sub-Contractor | E4: Prime with Sub-Contractor
A5: Statewide Average | B5: Prime Mark-up 17.5% | C5: Raw Cost to Prime | E5: Statewide Average | F5: Prime Mark-up 10% | G5: Sub Price to Prime | H5: Sub Mark-up 17.5% | I5: Raw Cost to Sub
A6: 12 | B6: =A6*14.8936170212766% -> 1.787234043 | C6: =A6-B6 -> 10.21276596 | E6: 47 | F6: =E6*9.09090909090909% -> 4.272727273 | G6: =E6-F6 -> 42.72727273 | H6: =G6*14.8936170212766% -> 6.363636364 | I6: =G6-H6 -> 36.36363636
A7: 48 | B7: =A7*14.8936170212766% -> 7.14893617 | C7: =A7-B7 -> 40.85106383 | E7: 48 | F7: =E7*9.09090909090909% -> 4.363636364 | G7: =E7-F7 -> 43.63636364 | H7: =G7*14.8936170212766% -> 6.499032882 | I7: =G7-H7 -> 37.13733075
A8: 49 | B8: 7.29787234 | C8: 41.70212766 | E8: 49 | F8: 4.454545455 | G8: 44.54545455 | H8: 6.6344294 | I8: 37.91102515
A9: 50 | B9: 7.446808511 | C9: 42.55319149 | E9: 50 | F9: 4.545454545 | G9: 45.45454545 | H9: 6.769825919 | I9: 38.68471954
A10: 51 | B10: 7.595744681 | C10: 43.40425532 | E10: 51 | F10: 4.636363636 | G10: 46.36363636 | H10: 6.905222437 | I10: 39.45841393
A11: 52 | B11: 7.744680851 | C11: 44.25531915 | E11: 52 | F11: 4.727272727 | G11: 47.27272727 | H11: 7.040618956 | I11: 40.23210832
A12: 53 | B12: 7.893617021 | C12: 45.10638298 | E12: 53 | F12: 4.818181818 | G12: 48.18181818 | H12: 7.176015474 | I12: 41.00580271
A13: 54 | B13: 8.042553191 | C13: 45.95744681 | E13: 54 | F13: 4.909090909 | G13: 49.09090909 | H13: 7.311411992 | I13: 41.7794971
A14: 55 | B14: 8.191489362 | C14: 46.80851064 | E14: 55 | F14: 5 | G14: 50 | H14: 7.446808511 | I14: 42.55319149
A15: 56 | B15: 8.340425532 | C15: 47.65957447 | E15: 56 | F15: 5.090909091 | G15: 50.90909091 | H15: 7.582205029 | I15: 43.32688588

Sheet Data (hidden)
A1: 104 | B1: 104
A2: 114 | B2: 114
A3: 125 | B3: 125
A4: 16 | B4: 16
A5: 26 | B5: 26
A6: 37 | B6: 37
A7: 16 | B7: 16
A8: 26 | B8: 26
A9: 37 | B9: 37
A10: 16 | B10: 16
A11: 26 | B11: 26
A12: 37 | B12: 37
A13: 16 | B13: 16
A14: 26 | B14: 26
A15: 37 | B15: 37
A16: 16 | B16: 16
A17: 26 | B17: 26
A18: 37 | B18: 37
A19: 16 | B19: 16
A20: 26 | B20: 26
A21: 37 | B21: 37
A22: 16 | B22: 16
A23: 26 | B23: 26
A24: 37 | B24: 37
A25: 16 | B25: 16
A26: 26 | B26: 26
A27: 37 | B27: 37
A28: 16 | B28: 16
A29: 26 | B29: 26
A30: 37 | B30: 37
A31: 16 | B31: 16
A32: 26 | B32: 26
A33: 37 | B33: 37
A34: 23 | B34: 23
